fUST/lending_fUST_20240227
["ID","MTS","AMOUNT","RATE_DAILY","PERIOD"]
[315378848,1708998644286,-2597.66,0.00020547,2]
[315378850,1708998644295,-1050.12,0.00020547,2]
[315378853,1708998644305,-500.0,0.00020547,2]
[315378856,1708998644314,-1645.2,0.00020547,2]
[315378859,1708998644328,-500.0,0.00020547,2]
[315378862,1708998644337,-567.61733427,0.00020547,2]
[315378865,1708998644347,-1088.67,0.00020547,2]
[315378868,1708998644356,-500.0,0.00020547,2]
[315378871,1708998644365,-500.0,0.00020547,2]
[315378874,1708998644374,-500.0,0.00020547,2]
[315378877,1708998644383,-1667.41,0.00020547,2]
[315378881,1708998644393,-3252.09,0.00020547,2]
[315378884,1708998644402,-1885.59,0.00020547,2]
[315378886,1708998644411,-1127.52,0.00020547,2]
[315378888,1708998644420,-500.0,0.00020547,2]
[315378891,1708998644428,-523.26,0.00020547,2]
[315378893,1708998644438,-1631.72,0.00020547,2]
[315378895,1708998644447,-9646.5,0.00020547,2]
[315378897,1708998644455,-1454.84,0.00020547,2]
[315378899,1708998644465,-3112.11,0.00020547,2]
[315378901,1708998644474,-15146.62,0.00020547,2]
[315378903,1708998644483,-831.12,0.00020547,2]
[315378906,1708998644492,-500.0,0.00020547,2]
[315378908,1708998644501,-525.13,0.00020547,2]
[315378910,1708998644510,-500.0,0.00020547,2]
[315378912,1708998644519,-1442.8,0.00020547,2]
[315378914,1708998644528,-500.0,0.00020547,2]
[315378917,1708998644538,-941.96,0.00020547,2]
[315378919,1708998644547,-1885.5,0.00020547,2]
[315378922,1708998644556,-1180.25,0.00020547,2]
[315378926,1708998644569,-6407.73,0.00020547,2]
[315378929,1708998644578,-500.0,0.00020547,2]
[315378932,1708998644587,-500.0,0.00020547,2]
[315378935,1708998644596,-1014.53,0.00020547,2]
[315378937,1708998644605,-218.97801187,0.00020547,2]
[315378939,1708998644614,-3081.53,0.00020547,2]
[315378941,1708998644624,-500.0,0.00020547,2]
[315378944,1708998644634,-16410.31,0.00020547,2]
[315378947,1708998644643,-500.0,0.00020547,2]
[315378950,1708998644653,-577.52,0.00020547,2]
[315378953,1708998644662,-1573.22,0.00020547,2]
[315378967,1708998644753,-584.14,0.00020547,2]
[315378969,1708998644763,-832.04,0.00020547,2]
[315378971,1708998644773,-2536.82,0.00020547,2]
[315378973,1708998644783,-1904.28,0.00020547,2]
[315378975,1708998644793,-748.79,0.00020547,2]
[315378977,1708998644802,-2347.76,0.00020547,2]
[315378979,1708998644813,-500.0,0.00020547,2]
[315378981,1708998644824,-83952.40962624,0.000206,2]
[315378996,1708998644925,-1464.42490201,0.000206,2]
[315378998,1708998644937,-111861.05806204,0.000206,2]
[315379000,1708998644947,-200.38756838,0.000206,2]
[315379002,1708998644956,-303.25938259,0.00020645,2]
[315379004,1708998644965,-1000.0,0.00020652,2]
[315379006,1708998644974,-2013.47643056,0.00020652,2]
[315379008,1708998644984,-910.53592288,0.00020652,2]
[315379010,1708998644993,-893.29221834,0.00020652,2]
[315379012,1708998645002,-1000.0,0.00020652,2]
[315379014,1708998645011,-712.2594405,0.00020654,2]
[315379016,1708998645021,-1462.17669429,0.00020655,2]
[315379018,1708998645029,-469.92137274,0.00020656,2]
[315379020,1708998645038,-1000.0,0.00020657,2]
[315379022,1708998645047,-886.32656622,0.00020657,2]
[315379023,1708998645056,-1000.0,0.00020657,2]
[315379025,1708998645066,-1000.0,0.00020657,2]
[315379027,1708998645077,-7229.87438857,0.00020657,3]
[315379029,1708998645086,-16781.37822141,0.00020659,3]
[315379031,1708998645095,-1000.0,0.00020661,5]
[315379034,1708998645105,-1000.0,0.00020662,5]
[315379035,1708998645114,-4410.65175931,0.00020662,2]
[315379037,1708998645123,-186.67371559,0.00020662,2]
[315379040,1708998645133,-431.88834158,0.00020662,2]
[315379041,1708998645142,-455.57723477,0.00020662,2]
[315379043,1708998645151,-732.37339486,0.00020684,2]
[315379045,1708998645160,-50000.0,0.00020735,3]
[315379048,1708998645169,-5000.0,0.00020736,5]
[315379050,1708998645178,-5000.0,0.00020736,5]
[315379052,1708998645187,-5000.0,0.00020736,5]
[315379055,1708998645197,-50000.0,0.00020738,3]
[315379058,1708998645207,-50000.0,0.00020743,3]
[315379060,1708998645217,-10806.5007314,0.00020745,2]
[315379063,1708998645226,-36284.53005058,0.00020745,2]
[315379066,1708998645235,-5000.0,0.00020745,2]
[315379068,1708998645245,-5000.0,0.00020745,2]
[315379070,1708998645254,-3569.14147079,0.00020745,2]
[315379072,1708998645263,-42428.75943622,0.00020745,2]
[315379074,1708998645279,-5000.0,0.00020745,2]
[315379076,1708998645288,-77447.25774721,0.00020745,3]
[315379078,1708998645297,-151.0,0.00020745,2]
[315379080,1708998645307,-5000.0,0.00020745,5]
[315379082,1708998645317,-5000.0,0.00020745,5]
[315379086,1708998645326,-5000.0,0.00020745,5]
[315379090,1708998645335,-151.0,0.00020745,2]
[315379094,1708998645344,-3547.053363,0.00020745,2]
[315379098,1708998645353,-3547.053363,0.00020745,2]
[315379101,1708998645363,-193.555653,0.00020745,2]
[315379104,1708998645372,-193.555653,0.00020745,2]
[315379108,1708998645381,-69496.79073005,0.00020745,3]
[315379110,1708998645391,-151.0,0.00020745,2]
[315379113,1708998645400,-165.672933,0.00020745,2]
[315379116,1708998645409,-165.672933,0.00020745,2]
[315379119,1708998645418,-220.724437,0.00020745,2]
[315379122,1708998645427,-5000.0,0.00020745,5]
[315379125,1708998645436,-5000.0,0.00020745,5]
[315379128,1708998645445,-50000.0,0.00020747,2]
[315379131,1708998645454,-300.0,0.00020749,2]
[315379135,1708998645463,-50000.0,0.00020761,2]
[315379137,1708998645472,-151.0,0.00020761,2]
[315379140,1708998645482,-339.149577,0.00020761,2]
[315379143,1708998645491,-339.149577,0.00020761,2]
[315379146,1708998645500,-23270.74321235,0.00020773,2]
[315379148,1708998645509,-169.85706915,0.00020797,2]
[315379151,1708998645519,-39220.24153506,0.00020798,2]
[315379154,1708998645529,-165.672933,0.00020798,2]
[315379156,1708998645538,-165.672933,0.00020798,2]
[315379158,1708998645547,-4710.81708967,0.00020799,2]
[315379160,1708998645557,-165.9912,0.000208,2]
[315379162,1708998645568,-580.0,0.000208,2]
[315379164,1708998645578,-27044.84098522,0.00020801,2]
[315379166,1708998645587,-827.58837865,0.00020819,2]
[315379168,1708998645597,-2217.9218269,0.00020819,2]
[315379170,1708998645606,-500.0,0.0002082,2]
[315379172,1708998645616,-500.0,0.0002082,2]
[315379174,1708998645625,-500.0,0.0002082,2]
[315379176,1708998645634,-450.63210521,0.0002082,2]
[315379177,1708998645643,-500.0,0.0002082,2]
[315379179,1708998645652,-500.0,0.0002082,2]
[315379181,1708998645661,-500.0,0.0002082,2]
[315379183,1708998645671,-500.0,0.0002082,2]
[315379185,1708998645680,-580.29610701,0.0002082,2]
[315379187,1708998645690,-500.0,0.0002082,2]
[315379189,1708998645703,-500.0,0.0002082,2]
[315379191,1708998645712,-500.0,0.0002082,2]
[315379193,1708998645722,-500.0,0.0002082,2]
[315379196,1708998645734,-348.45365001,0.0002082,2]
[315379197,1708998645743,-500.0,0.0002082,2]
[315379200,1708998645753,-500.0,0.0002082,2]
[315379201,1708998645762,-500.0,0.0002082,2]
[315379204,1708998645772,-500.0,0.0002082,2]
[315379205,1708998645782,-500.0,0.0002082,2]
[315379207,1708998645791,-500.0,0.0002082,2]
[315379210,1708998645801,-500.0,0.0002082,2]
[315379211,1708998645811,-500.0,0.0002082,2]
[315379214,1708998645822,-500.0,0.0002082,2]
[315379215,1708998645831,-577.353098,0.0002082,2]
[315379218,1708998645841,-500.0,0.0002082,2]
[315379220,1708998645850,-500.0,0.0002082,2]
[315379222,1708998645860,-500.0,0.0002082,2]
[315379223,1708998645869,-160.0,0.0002082,2]
[315379225,1708998645878,-237.99635956,0.0002082,2]
[315379227,1708998645887,-500.0,0.00020821,2]
[315379229,1708998645897,-757.9,0.00020821,2]
[315379231,1708998645906,-1253.19,0.00020821,2]
[315379233,1708998645915,-151.0,0.00020821,2]
[315379235,1708998645925,-2561.57,0.00020821,2]
[315379237,1708998645934,-500.0,0.00020821,2]
[315379239,1708998645943,-580.25,0.00020821,2]
[315379241,1708998645952,-504.22018104,0.00020821,2]
[315379243,1708998645962,-1808.29,0.00020821,2]
[315379245,1708998645971,-643.74,0.00020821,2]
[315379247,1708998645980,-500.0,0.00020821,2]
[315379249,1708998645990,-2597.66,0.00020821,2]
[315379251,1708998645999,-1050.12,0.00020821,2]
[315379253,1708998646009,-500.0,0.00020821,2]
[315379256,1708998646018,-1645.2,0.00020821,2]
[315379259,1708998646027,-151.0,0.00020821,2]
[315379262,1708998646037,-500.0,0.00020821,2]
[315379265,1708998646045,-151.0,0.00020821,2]
[315379267,1708998646054,-3547.053363,0.00020821,2]
[315379269,1708998646063,-1088.67,0.00020821,2]
[315379271,1708998646074,-3547.053363,0.00020821,2]
[315379273,1708998646083,-500.0,0.00020821,2]
[315379275,1708998646092,-500.0,0.00020821,2]
[315379277,1708998646101,-346.17204284,0.00020821,2]
[315379279,1708998646110,-1667.41,0.00020821,2]
[315379281,1708998646119,-3252.09,0.00020821,2]
[315379283,1708998646128,-1885.59,0.00020821,2]
[315379285,1708998646137,-1127.52,0.00020821,2]
[315379287,1708998646147,-624.67126298,0.00020821,2]
[315379289,1708998646156,-523.26,0.00020821,2]
[315379291,1708998646165,-193.555653,0.00020821,2]
[315379293,1708998646174,-193.555653,0.00020821,2]
[315379295,1708998646183,-1631.72,0.00020821,2]
[315379297,1708998646193,-9646.5,0.00020821,2]
[315379300,1708998646202,-1454.84,0.00020821,2]
[315379302,1708998646211,-151.0,0.00020821,2]
[315379305,1708998646220,-3112.11,0.00020821,2]
[315379308,1708998646229,-15146.62,0.00020821,2]
[315379310,1708998646238,-831.12,0.00020821,2]
[315379311,1708998646247,-503.5059306,0.00020821,2]
[315379313,1708998646256,-525.13,0.00020821,2]
[315379315,1708998646266,-500.0,0.00020821,2]
[315379317,1708998646275,-1442.8,0.00020821,2]
[315379319,1708998646284,-500.0,0.00020821,2]
[315379321,1708998646294,-941.96,0.00020821,2]
[315379323,1708998646302,-1885.5,0.00020821,2]
[315379325,1708998646311,-1180.25,0.00020821,2]
[315379327,1708998646322,-6407.73,0.00020821,2]
[315379329,1708998646331,-489.1078428,0.00020821,2]
[315379331,1708998646340,-500.0,0.00020821,2]
[315379333,1708998646349,-1014.53,0.00020821,2]
[315379335,1708998646358,-3081.53,0.00020821,2]
[315379337,1708998646367,-500.0,0.00020821,2]
[315379339,1708998646377,-16410.31,0.00020821,2]
[315379341,1708998646386,-500.0,0.00020821,2]
[315379343,1708998646395,-577.52,0.00020821,2]
[315379346,1708998646405,-1573.22,0.00020821,2]
[315379347,1708998646414,-584.14,0.00020821,2]
[315379349,1708998646423,-832.04,0.00020821,2]
[315379352,1708998646433,-2536.82,0.00020821,2]
[315379353,1708998646441,-1904.28,0.00020821,2]
[315379355,1708998646451,-748.79,0.00020821,2]
[315379357,1708998646459,-2347.76,0.00020821,2]
[315379359,1708998646468,-500.0,0.00020821,2]
[315379361,1708998646477,-1000.0,0.00020833,2]
[315379363,1708998646486,-19702.67493575,0.00020835,2]
[315379365,1708998646495,-1000.0,0.0002086,2]
[315379367,1708998646504,-653.7027632,0.0002086,2]
[315379369,1708998646513,-500.0,0.00020868,2]
[315379371,1708998646522,-1000.0,0.00020871,2]
[315379373,1708998646531,-179.43256387,0.00020899,2]
[315379375,1708998646541,-205.573,0.00020899,2]
[315379377,1708998646550,-21563.04,0.000209,3]
[315379379,1708998646559,-151.0,0.000209,2]
[315379381,1708998646568,-339.149577,0.000209,2]
[315379383,1708998646577,-339.149577,0.000209,2]
[315379385,1708998646586,-2217.9218269,0.000209,2]
[315379387,1708998646596,-1000.0,0.00020915,2]
[315379389,1708998646605,-1000.0,0.00020915,2]
[315379391,1708998646613,-1000.0,0.0002092,2]
[315379393,1708998646622,-1000.0,0.00020921,2]
[315379395,1708998646631,-1000.0,0.00020947,2]
[315379397,1708998646640,-160.1671483,0.00020951,2]
[315379398,1708998646649,-160.0,0.00020951,2]
[315379400,1708998646658,-500.21,0.00020951,2]
[315379402,1708998646668,-500.21,0.00020951,2]
[315379404,1708998646677,-500.21,0.00020951,2]
[315379406,1708998646685,-500.21,0.00020951,2]
[315379408,1708998646695,-500.21,0.00020951,2]
[315379419,1708998646793,-500.21,0.00020951,2]
[315379421,1708998646805,-500.21,0.00020951,2]
[315379423,1708998646815,-500.21,0.00020951,2]
[315379425,1708998646826,-500.21,0.00020951,2]
[315379427,1708998646835,-500.21,0.00020951,2]
[315379429,1708998646844,-50000.0,0.00020952,2]
[315379431,1708998646853,-50000.0,0.00020952,2]
[315379433,1708998646863,-151.0,0.00020952,2]
[315379435,1708998646873,-234.010736,0.00020952,2]
[315379437,1708998646882,-3547.053363,0.00020952,2]
[315379439,1708998646891,-3547.053363,0.00020952,2]
[315379441,1708998646901,-193.555653,0.00020952,2]
[315379443,1708998646910,-193.555653,0.00020952,2]
[315379445,1708998646919,-151.0,0.00020952,2]
[315379447,1708998646928,-165.672933,0.00020952,2]
[315379449,1708998646937,-165.672933,0.00020952,2]
[315379451,1708998646946,-1000.0,0.00020957,2]
[315379453,1708998646955,-153.70930884,0.00020964,2]
[315379456,1708998646965,-166.666666,0.00020973,2]
[315379458,1708998646975,-500.0,0.00020991,2]
[315379459,1708998646984,-428.88796945,0.00020998,2]
[315379461,1708998646993,-273.23870182,0.00020999,2]
[315379463,1708998647003,-139147.54698581,0.00021,2]
[315379485,1708998647198,-500.0,0.00019178,2]
[315379487,1708998647209,-500.0,0.00019178,2]
[315379489,1708998647219,-506.72593005,0.00019452,2]
[315379491,1708998647228,-500.0,0.00019452,2]
[315379493,1708998647238,-500.0,0.00019726,2]
[315379494,1708998647247,-566.62,0.0002,2]
[315379495,1708998647256,-50000.0,0.00020187,5]
[315379496,1708998647265,-690.31878316,0.00021,2]
[315379497,1708998647276,-427.63664462,0.00021,2]
[315379500,1708998647307,-8250.3,0.00020537,3]
[315379508,1708998647376,-4065.18,0.00020537,3]
[315379510,1708998647385,-54592.03022157,0.00021,2]
[315383978,1708998850673,6130.11827699,0.000125,2]
[315383980,1708998860308,159.55499998,0.000176,2]
[315383981,1708998865208,270.5298503,0.0001,2]
[315383989,1708999144892,215.829995,0.00017945,2]
[315383991,1708999285182,5283.68260769,0.00017945,2]
[315383992,1708999297188,5283.68260769,0.00017945,2]
[315383993,1708999313191,3744.58625478,0.00017945,2]
[315383996,1708999334256,12001.4261391,0.0001785,2]
[315384003,1708999609404,204.44360598,0.00018099,2]
[315384004,1708999616915,691.77195621,0.00018099,2]
[315384019,1708999757147,1049.80342083,0.00018099,2]
[315384023,1708999804777,155.15515516,0.00018099,2]
[315384025,1708999828276,222.32813394,0.00018026,2]
[315384047,1708999832136,-204.541555,0.000181,2]
[315384048,1708999832146,-6104.6018174,0.00018126,2]
[315384050,1708999832155,-1572.0,0.00018272,2]
[315384051,1708999832166,-691.77195621,0.00018897,2]
[315384054,1708999832176,-256.02508508,0.000189,2]
[315384055,1708999832185,-406.7,0.00019168,3]
[315384057,1708999832195,-155.15515516,0.00019176,2]
[315384059,1708999832205,-1213.18881828,0.00019177,2]
[315384062,1708999832217,-500.0,0.00019177,2]
[315384064,1708999832227,-500.0,0.00019178,2]
[315384066,1708999832237,-500.0,0.00019178,2]
[315384068,1708999832248,-500.0,0.00019178,2]
[315384070,1708999832258,-500.0,0.00019178,2]
[315384072,1708999832268,-500.0,0.00019178,2]
[315384074,1708999832277,-505.47843032,0.00019178,2]
[315384076,1708999832287,-500.0,0.00019178,2]
[315384078,1708999832298,-502.38423905,0.00019178,2]
[315384080,1708999832309,-500.0,0.00019178,2]
[315384082,1708999832319,-501.97109407,0.00019178,2]
[315384084,1708999832328,-500.0,0.00019178,2]
[315384085,1708999832338,-861.21,0.00019178,2]
[315384087,1708999832347,-567.61733427,0.00019178,2]
[315384089,1708999832357,-500.0,0.00019178,2]
[315384091,1708999832368,-500.0,0.00019178,2]
[315384093,1708999832377,-1948.24,0.00019178,2]
[315384095,1708999832388,-837.57,0.00019178,2]
[315384097,1708999832398,-500.0,0.00019178,2]
[315384099,1708999832408,-500.0,0.00019178,2]
[315384101,1708999832418,-500.10196764,0.00019178,2]
[315384103,1708999832428,-1233.9,0.00019178,2]
[315384105,1708999832438,-500.0,0.00019178,2]
[315384107,1708999832448,-845.64,0.00019178,2]
[315384109,1708999832459,-500.19345076,0.00019178,2]
[315384111,1708999832471,-500.0,0.00019178,2]
[315384113,1708999832481,-201.80826819,0.00019178,2]
[315384115,1708999832490,-513.44,0.00019178,2]
[315384117,1708999832499,-500.0,0.00019178,2]
[315384119,1708999832508,-500.0,0.00019178,2]
[315384121,1708999832519,-500.0,0.00019178,2]
[315384124,1708999832529,-500.0,0.00019178,2]
[315384125,1708999832538,-500.0,0.00019178,2]
[315384127,1708999832549,-500.0,0.00019178,2]
[315384129,1708999832558,-500.0,0.00019178,2]
[315384131,1708999832567,-500.0,0.00019178,2]
[315384133,1708999832576,-503.62709028,0.00019178,2]
[315384135,1708999832586,-500.0,0.00019178,2]
[315384137,1708999832596,-500.0,0.00019178,2]
[315384139,1708999832606,-418.60557708,0.00019178,2]
[315384141,1708999832616,-500.0,0.00019178,2]
[315384143,1708999832625,-227.28863408,0.00019178,2]
[315384145,1708999832636,-500.0,0.00019178,2]
[315384147,1708999832645,-500.0,0.00019178,2]
[315384149,1708999832656,-500.0,0.00019178,2]
[315384151,1708999832666,-500.0,0.00019178,2]
[315384153,1708999832676,-500.0,0.00019178,2]
[315384155,1708999832686,-500.0,0.00019178,2]
[315384157,1708999832695,-500.0,0.00019178,2]
[315384159,1708999832705,-501.65610853,0.00019178,2]
[315384161,1708999832715,-500.0,0.00019178,2]
[315384163,1708999832725,-1818.25,0.00019178,2]
[315384165,1708999832734,-500.42301323,0.00019178,2]
[315384167,1708999832744,-500.0,0.00019178,2]
[315384169,1708999832753,-500.74212623,0.00019178,2]
[315384171,1708999832763,-500.0,0.00019178,2]
[315384173,1708999832773,-500.0,0.00019178,2]
[315384175,1708999832783,-500.0,0.00019178,2]
[315384177,1708999832794,-1402.85,0.00019178,2]
[315384179,1708999832804,-500.0,0.00019178,2]
[315384181,1708999832814,-632.27431855,0.00019178,2]
[315384183,1708999832824,-500.67273146,0.00019178,2]
[315384185,1708999832834,-1138.07,0.00019178,2]
[315384187,1708999832843,-500.0,0.00019178,2]
[315384189,1708999832854,-502.37139835,0.00019178,2]
[315384191,1708999832863,-500.0,0.00019178,2]
[315384193,1708999832873,-500.0,0.00019178,2]
[315384195,1708999832883,-599.4018927,0.00019178,2]
[315384197,1708999832893,-500.0,0.00019178,2]
[315384199,1708999832902,-501.84525763,0.00019178,2]
[315384201,1708999832911,-500.0,0.00019178,2]
[315384203,1708999832920,-500.0,0.00019178,2]
[315384205,1708999832930,-502.26498028,0.00019178,2]
[315384207,1708999832940,-500.0,0.00019178,2]
[315384219,1708999833059,-500.0,0.00019178,2]
[315384220,1708999833070,-774.6,0.00019178,2]
[315384222,1708999833080,-500.0,0.00019178,2]
[315384225,1708999833090,-500.0,0.00019178,2]
[315384226,1708999833100,-500.0,0.00019178,2]
[315384228,1708999833110,-1208.42,0.00019178,2]
[315384230,1708999833119,-500.0,0.00019178,2]
[315384232,1708999833128,-730.82,0.00019178,2]
[315384234,1708999833138,-563.27,0.00019178,2]
[315384236,1708999833147,-801.43,0.00019178,2]
[315384238,1708999833158,-908.31,0.00019178,2]
[315384240,1708999833168,-1813.97,0.00019178,2]
[315384242,1708999833178,-396.13099514,0.00019178,2]
[315384244,1708999833187,-929.99,0.00019178,2]
[315384246,1708999833198,-1322.56,0.00019178,2]
[315384248,1708999833207,-500.0,0.00019178,2]
[315384250,1708999833217,-6178.78,0.00019178,2]
[315384252,1708999833226,-500.0,0.00019178,2]
[315384254,1708999833236,-556.87,0.00019178,2]
[315384256,1708999833246,-500.0,0.00019178,2]
[315384258,1708999833255,-2824.74,0.00019178,2]
[315384260,1708999833265,-2470.09,0.00019178,2]
[315384262,1708999833274,-500.0,0.00019178,2]
[315384264,1708999833284,-1442.12,0.00019178,2]
[315384266,1708999833296,-500.0,0.00019178,2]
[315384268,1708999833307,-501.59504109,0.00019178,2]
[315384270,1708999833317,-500.0,0.00019178,2]
[315384272,1708999833328,-500.0,0.00019178,2]
[315384274,1708999833337,-503.20835864,0.00019178,2]
[315384276,1708999833347,-1003.08489069,0.00019178,2]
[315384278,1708999833356,-500.0,0.00019178,2]
[315384280,1708999833365,-500.0,0.00019178,2]
[315384282,1708999833375,-500.67580525,0.00019178,2]
[315384284,1708999833384,-1000.0,0.00019178,2]
[315384286,1708999833393,-500.0,0.00019178,2]
[315384288,1708999833402,-15042.79,0.00019178,2]
[315384290,1708999833410,-2440.69,0.00019178,2]
[315384292,1708999833419,-500.0,0.00019178,2]
[315384294,1708999833428,-3132.96,0.00019178,2]
[315384296,1708999833452,-720.43,0.00019178,2]
[315384298,1708999833463,-320.86018493,0.00019178,2]
[315384310,1708999833569,-82.47451615,0.00019178,2]
[315384312,1708999833578,-1810.71370461,0.00019178,2]
[315384314,1708999833590,-8.33629539,0.00019178,2]
[315384316,1708999833599,-500.0,0.00019178,2]
[315384318,1708999833609,-500.0,0.00019178,2]
[315384320,1708999833618,-500.0,0.00019178,2]
[315384322,1708999833627,-1687.26,0.00019178,2]
[315384324,1708999833636,-500.0,0.00019178,2]
[315384326,1708999833645,-500.0,0.00019178,2]
[315384327,1708999833654,-500.0,0.00019178,2]
[315384329,1708999833665,-500.0,0.00019178,2]
[315384331,1708999833674,-1766.0,0.00019178,2]
[315384333,1708999833683,-500.0,0.00019178,2]
[315384335,1708999833692,-500.0,0.00019178,2]
[315384337,1708999833702,-2356.65,0.00019178,2]
[315384339,1708999833711,-500.0,0.00019178,2]
[315384341,1708999833720,-500.0,0.00019178,2]
[315384343,1708999833729,-500.84804991,0.00019178,2]
[315384345,1708999833738,-500.0,0.00019178,2]
[315384347,1708999833747,-500.0,0.00019178,2]
[315384349,1708999833756,-500.0,0.00019178,2]
[315384351,1708999833765,-500.0,0.00019178,2]
[315384353,1708999833774,-500.0,0.00019178,2]
[315384355,1708999833784,-500.0,0.00019178,2]
[315384357,1708999833794,-500.0,0.00019178,2]
[315384359,1708999833803,-529.25922316,0.00019178,2]
[315384361,1708999833812,-500.0,0.00019178,2]
[315384363,1708999833822,-503.60079056,0.00019178,2]
[315384365,1708999833833,-500.0,0.00019178,2]
[315384367,1708999833843,-9761.01,0.00019178,2]
[315384369,1708999833852,-500.0,0.00019178,2]
[315384371,1708999833861,-500.0,0.00019178,2]
[315384373,1708999833870,-500.0,0.00019178,2]
[315384375,1708999833879,-500.0,0.00019178,2]
[315384377,1708999833888,-500.0,0.00019178,2]
[315384379,1708999833897,-333.24187011,0.00019178,2]
[315384381,1708999833906,-500.0,0.00019178,2]
[315384383,1708999833915,-3159.87,0.00019178,2]
[315384384,1708999833924,-529.46,0.00019178,2]
[315384386,1708999833933,-500.0,0.00019178,2]
[315384388,1708999833942,-500.0,0.00019178,2]
[315384390,1708999833952,-500.0,0.00019178,2]
[315384392,1708999833961,-627.07237057,0.00019178,2]
[315384394,1708999833970,-500.0,0.00019178,2]
[315384396,1708999833979,-421.66620567,0.00019178,2]
[315384398,1708999833988,-1651.0,0.00019178,2]
[315384400,1708999833997,-503.1173784,0.00019178,2]
[315384402,1708999834007,-15326.33,0.00019178,2]
[315384404,1708999834017,-694.82180753,0.00019178,2]
[315384405,1708999834026,-167.120759,0.00019178,2]
[315384407,1708999834036,-173.182397,0.00019178,2]
[315384409,1708999834048,-166.666666,0.00019178,2]
[315384411,1708999834058,-167.204576,0.00019178,2]
[315384413,1708999834068,-500.0,0.00019231,2]
[315384415,1708999834078,-500.0,0.00019232,2]
[315384417,1708999834087,-500.0,0.00019287,2]
[315384419,1708999834096,-352.01506984,0.00019342,2]
[315384421,1708999834106,-300.86567968,0.00019352,2]
[315384423,1708999834115,-345.628901,0.00019433,2]
[315384425,1708999834125,-500.0,0.00019451,2]
[315384427,1708999834133,-500.0,0.00019451,2]
[315384429,1708999834143,-500.0,0.00019452,2]
[315384431,1708999834152,-500.0,0.00019452,2]
[315384433,1708999834161,-500.0,0.00019452,2]
[315384435,1708999834171,-861.21,0.00019452,2]
[315384437,1708999834181,-500.0,0.00019452,2]
[315384439,1708999834190,-1948.24,0.00019452,2]
[315384441,1708999834199,-837.57,0.00019452,2]
[315384443,1708999834209,-1233.9,0.00019452,2]
[315384445,1708999834218,-845.64,0.00019452,2]
[315384447,1708999834228,-513.44,0.00019452,2]
[315384449,1708999834237,-500.0,0.00019452,2]
[315384451,1708999834247,-500.0,0.00019452,2]
[315384453,1708999834256,-500.0,0.00019452,2]
[315384455,1708999834265,-501.87399356,0.00019452,2]
[315384457,1708999834274,-500.0,0.00019452,2]
[315384458,1708999834283,-211.14111785,0.00019452,2]
[315384460,1708999834294,-500.0,0.00019452,2]
[315384462,1708999834304,-500.0,0.00019452,2]
[315384464,1708999834314,-500.0,0.00019452,2]
[315384466,1708999834324,-500.0,0.00019452,2]
[315384468,1708999834333,-500.0,0.00019452,2]
[315384470,1708999834343,-530.10517207,0.00019452,2]
[315384472,1708999834353,-161.19598813,0.00019452,2]
[315384474,1708999834363,-500.0,0.00019452,2]
[315384476,1708999834373,-500.0,0.00019452,2]
[315384478,1708999834382,-500.0,0.00019452,2]
[315384480,1708999834392,-1818.25,0.00019452,2]
[315384482,1708999834402,-500.0,0.00019452,2]
[315384484,1708999834411,-500.0,0.00019452,2]